[Event "Guimaraes Open 2019"]
[Site "Guimaraes"]
[Date "2019.09.01"]
[Round "7.25"]
[White "Jimenez Fernandez, Rebeca"]
[Black "Garcia Sobrino, David"]
[Result "1-0"]
[ECO "B26"]
[WhiteElo "1928"]
[BlackElo "2195"]
[Annotator "NA"]
[PlyCount "109"]
[EventDate "2019.08.28"]
[EventType "swiss"]
[EventCountry "POR"]
[SourceTitle "playchess.com"]
[Source "ChessBase"]
[SourceQuality "1"]
[TimeControl "5400+30"]

1. e4 {[%emt 0:00:00]} c5 {[%emt 0:00:00]} 2. Nc3 {[%emt 0:00:00]} Nc6 {[%emt 0:00:00]} 3. g3 {[%emt 0:00:00]} g6 {[%emt 0:00:00]} 4. Bg2 {[%emt 0:00:00]} Bg7 {[%emt 0:00:00]} 5. d3 {[%emt 0:00:02]} d6 {[%emt 0:00:02]} 6. Be3 {[%emt 0:00:10]} Nf6 {[%emt 0:00:06]} 7. h3 {[%emt 0:00:09]} O-O {[%emt 0:00:35]} 8. Qd2 {[%emt 0:00:06]} Rb8 {[%emt 0:00:19]} 9. Bh6 {[%emt 0:01:10]} b5 {[%emt 0:00:53]} 10. Bxg7 {[%emt 0:00:15]} Kxg7 {[%emt 0:00:07]} 11. f4 {[%emt 0:00:24]} Nd4 {[%emt 0:10:57]} 12. Nf3 {[%emt 0:07:32]} b4 {[%emt 0:11:31]} 13. Nd1 {[%emt 0:05:19]} e6 {[%emt 0:04:20]} 14. g4 {[%emt 0:08:55]} a5 {[%emt 0:13:45]} 15. Ne3 {[%emt 0:03:12]} Bb7 {[%emt 0:15:28]} 16. O-O {[%emt 0:04:49]} d5 {[%emt 0:05:57]} 17. e5 {[%emt 0:08:10]} Nd7 {[%emt 0:08:07]} 18. Nxd4 {[%emt 0:11:50]} cxd4 {[%emt 0:00:15]} 19. Nd1 {[%emt 0:00:40]} Rc8 {[%emt 0:03:17]} 20. Nf2 {[%emt 0:02:25]} Qc7 {[%emt 0:03:47]} 21. Rac1 {[%emt 0:02:21]} f6 {[%emt 0:00:18]} 22. exf6+ {[%emt 0:02:33]} Rxf6 {[%emt 0:00:22]} 23. Nh1 {[%emt 0:02:41]} Rcf8 {[%emt 0:03:23]} 24. Rce1 {[%emt 0:02:07]} Nc5 {[%emt 0:01:44]} 25. Ng3 {[%emt 0:07:53]} Bc8 {[%emt 0:08:17]} 26. Ne2 {[%emt 0:01:59]} Na4 {[%emt 0:02:10]} 27. g5 {[%emt 0:05:48]} R6f7 {[%emt 0:01:50]} 28. Nxd4 {[%emt 0:00:53]} Nxb2 {[%emt 0:03:28]} 29. Nxe6+ {[%emt 0:02:32]} Bxe6 {[%emt 0:00:06]} 30. Rxe6 {[%emt 0:00:08]} Rxf4 {[%emt 0:00:55]} 31. Rxf4 {[%emt 0:00:54]} Qxf4 {[%emt 0:01:36]} 32. Re7+ {[%emt 0:01:11]} Kh8 {[%emt 0:00:16]} 33. Qxf4 {[%emt 0:00:51]} Rxf4 {[%emt 0:00:04]} 34. Bxd5 {[%emt 0:00:35]} h5 {[%emt 0:01:27]} 35. Be4 {[%emt 0:01:12]} Nd1 {[%emt 0:00:57]} 36. Bxg6 {[%emt 0:00:59]} Rf3 {[%emt 0:00:46]} 37. Bxh5 {[%emt 0:00:32]} Rg3+ {[%emt 0:00:30]} 38. Kh2 {[%emt 0:00:13]} Re3 {[%emt 0:00:05]} 39. Rxe3 {[%emt 0:03:38]} Nxe3 {[%emt 0:00:04]} 40. d4 {[%emt 0:00:31]} Nxc2 {[%emt 0:00:27]} 41. d5 {[%emt 0:00:31]} Nd4 {[%emt 0:01:18]} 42. d6 {[%emt 0:00:32]} Kg7 {[%emt 0:00:23]} 43. d7 {[%emt 0:02:01]} Ne6 {[%emt 0:00:22]} 44. Bd1 {[%emt 0:00:23]} Kf8 {[%emt 0:00:13]} 45. Bb3 {[%emt 0:00:24]} Nd8 {[%emt 0:00:11]} 46. h4 {[%emt 0:00:56]} Ke7 {[%emt 0:00:20]} 47. g6 {[%emt 0:00:45]} Kf6 {[%emt 0:01:34]} 48. h5 {[%emt 0:00:20]} Nc6 {[%emt 0:00:16]} 49. Bc2 {[%emt 0:01:43]} Kg7 {[%emt 0:00:37]} 50. Kg3 {[%emt 0:00:19]} Kh6 {[%emt 0:00:20]} 51. Kf4 {[%emt 0:00:28]} Nd8 {[%emt 0:01:02]} 52. Ke5 {[%emt 0:00:09]} Kg7 {[%emt 0:00:24]} 53. Kd6 {[%emt 0:00:18]} a4 {[%emt 0:00:28]} 54. Bxa4 {[%emt 0:00:16]} Kf6 {[%emt 0:00:16]} 55. Bb3 {[%emt 0:00:21]} 1-0

[Event "Guimaraes Open 2019"]
[Site "Guimaraes"]
[Date "2019.09.01"]
[Round "7.26"]
[White "Patino Romaris, Juan Roberto"]
[Black "Beltran Ortiz, Edda Georgina"]
[Result "1-0"]
[ECO "A58"]
[WhiteElo "2141"]
[BlackElo "1729"]
[Annotator "ChessBase"]
[PlyCount "119"]
[EventDate "2019.08.28"]
[EventType "swiss"]
[EventCountry "POR"]
[SourceTitle "playchess.com"]
[Source "ChessBase"]
[SourceQuality "1"]
[TimeControl "5400+30"]

1. d4 {[%emt 0:00:00]} Nf6 {[%emt 0:02:46]} 2. c4 {[%emt 0:00:00]} c5 {[%emt 0:00:17]} 3. d5 {[%emt 0:00:00]} b5 {[%emt 0:00:52]} 4. cxb5 {[%emt 0:00:07]} a6 {[%emt 0:00:10]} 5. bxa6 {[%emt 0:00:08]} Bxa6 {[%emt 0:00:19]} 6. Nc3 {[%emt 0:00:24]} g6 {[%emt 0:00:12]} 7. g3 {[%emt 0:00:08]} d6 8. Bg2 Bg7 {[%emt 0:01:15]} 9. Nh3 {[%emt 0:00:38]} O-O {[%emt 0:01:22]} 10. Nf4 {[%emt 0:00:20]} Nbd7 {[%emt 0:01:29]} 11. h4 {[%emt 0:00:13]} h6 {[%emt 0:01:47]} 12. Qc2 {[%emt 0:04:02]} Ne5 {[%emt 0:08:50]} 13. O-O {[%emt 0:00:15]} Qa5 {[%emt 0:03:05]} 14. b3 {[%emt 0:09:00]} Rfb8 {[%emt 0:01:23]} 15. Bd2 {[%emt 0:00:22]} c4 {[%emt 0:13:39]} 16. Rfc1 {[%emt 0:04:06]} Qa3 {[%emt 0:08:35]} 17. Nb1 {[%emt 0:12:43]} cxb3 {[%emt 0:12:56]} 18. Nxa3 {[%emt 0:01:26]} bxc2 {[%emt 0:00:10]} 19. Nxc2 {[%emt 0:00:07]} g5 {[%emt 0:16:07]} 20. hxg5 {[%emt 0:00:13]} hxg5 {[%emt 0:00:12]} 21. Nh3 {[%emt 0:00:11]} Bxe2 {[%emt 0:00:43]} 22. Nd4 {[%emt 0:00:11]} g4 {[%emt 0:05:39]} 23. Ng5 {[%emt 0:03:36]} Bf3 {[%emt 0:07:54]} 24. Ngxf3 {[%emt 0:10:51]} gxf3 {[%emt 0:02:53]} 25. Nxf3 {[%emt 0:00:14]} Ne4 {[%emt 0:01:28]} 26. Nxe5 {[%emt 0:02:14]} Bxe5 {[%emt 0:03:54]} 27. Bxe4 {[%emt 0:00:48]} Bxa1 28. Rxa1 {[%emt 0:00:06]} Rb2 {[%emt 0:00:53]} 29. Bg5 {[%emt 0:01:54]} f6 {[%emt 0:03:22]} 30. Bf4 {[%emt 0:01:26]} Raxa2 {[%emt 0:01:04]} 31. Rxa2 {[%emt 0:00:06]} Rxa2 {[%emt 0:00:03]} 32. Bf5 {[%emt 0:01:33]} Kg7 {[%emt 0:00:56]} 33. Kg2 {[%emt 0:01:05]} Ra5 {[%emt 0:01:17]} 34. Be6 {[%emt 0:00:33]} Ra3 {[%emt 0:00:18]} 35. g4 {[%emt 0:01:04]} Ra4 {[%emt 0:00:52]} 36. Kg3 {[%emt 0:00:18]} Ra3+ {[%emt 0:00:25]} 37. Be3 {[%emt 0:00:26]} Kg6 {[%emt 0:00:23]} 38. Kf3 {[%emt 0:00:45]} Ra5 {[%emt 0:00:22]} 39. Bf5+ {[%emt 0:01:30]} Kg7 {[%emt 0:00:07]} 40. Ke4 {[%emt 0:00:17]} Ra4+ {[%emt 0:00:33]} 41. Bd4 {[%emt 0:00:18]} Kh6 {[%emt 0:01:19]} 42. Bd7 {[%emt 0:04:02]} Rb4 {[%emt 0:00:33]} 43. Kd3 {[%emt 0:01:09]} Rb7 {[%emt 0:00:28]} 44. Bf5 {[%emt 0:01:10]} Rb3+ {[%emt 0:00:26]} 45. Kc4 {[%emt 0:00:17]} Rb7 {[%emt 0:00:36]} 46. Be6 {[%emt 0:01:09]} Rc7+ {[%emt 0:00:26]} 47. Kd3 {[%emt 0:00:07]} Rb7 {[%emt 0:00:09]} 48. Be3+ {[%emt 0:01:23]} Kg7 {[%emt 0:00:02]} 49. f4 {[%emt 0:00:12]} Rb3+ {[%emt 0:00:22]} 50. Ke4 {[%emt 0:00:14]} Rb4+ {[%emt 0:00:11]} 51. Kf5 {[%emt 0:00:45]} Rb3 {[%emt 0:01:48]} 52. Bd4 {[%emt 0:00:13]} Rb4 {[%emt 0:00:17]} 53. Be3 {[%emt 0:00:50]} Rb3 {[%emt 0:00:08]} 54. Bd2 {[%emt 0:00:21]} Rb2 {[%emt 0:00:13]} 55. Ba5 {[%emt 0:00:07]} Kf8 {[%emt 0:00:48]} 56. Be1 {[%emt 0:01:27]} Re2 {[%emt 0:00:18]} 57. Bh4 {[%emt 0:00:48]} Rh2 {[%emt 0:00:07]} 58. Bxf6 {[%emt 0:01:09]} exf6 {[%emt 0:00:36]} 59. Kxf6 {[%emt 0:00:02]} Rf2 {[%emt 0:00:44]} 60. f5 {[%emt 0:00:34]} 1-0

[Event "Guimaraes Open 2019"]
[Site "Guimaraes"]
[Date "2019.09.01"]
[Round "7.27"]
[White "Basilio, Rodrigo"]
[Black "Fernandes, Miguel A. Murtinho"]
[Result "1/2-1/2"]
[ECO "B15"]
[WhiteElo "1782"]
[BlackElo "2108"]
[Annotator "NA"]
[PlyCount "76"]
[EventDate "2019.08.28"]
[EventType "swiss"]
[EventCountry "POR"]
[SourceTitle "playchess.com"]
[Source "ChessBase"]
[SourceQuality "1"]
[TimeControl "5400+30"]

1. e4 {[%emt 0:00:00]} c6 {[%emt 0:01:27]} 2. d4 {[%emt 0:00:02]} d5 {[%emt 0:00:06]} 3. Nd2 {[%emt 0:00:08]} dxe4 {[%emt 0:00:07]} 4. Nxe4 {[%emt 0:00:06]} Nf6 {[%emt 0:00:06]} 5. Nxf6+ {[%emt 0:00:31]} exf6 {[%emt 0:00:07]} 6. Nf3 {[%emt 0:00:53]} Bd6 {[%emt 0:00:09]} 7. Bd3 {[%emt 0:01:09]} O-O {[%emt 0:00:11]} 8. O-O {[%emt 0:00:30]} Re8 {[%emt 0:00:10]} 9. h3 {[%emt 0:00:15]} Nd7 {[%emt 0:00:06]} 10. c4 {[%emt 0:01:12]} Nf8 {[%emt 0:00:09]} 11. d5 {[%emt 0:07:30]} Ng6 {[%emt 0:06:45]} 12. Be3 {[%emt 0:01:51]} cxd5 {[%emt 0:00:29]} 13. cxd5 {[%emt 0:00:11]} Ne5 {[%emt 0:02:15]} 14. Nxe5 {[%emt 0:01:47]} fxe5 {[%emt 0:01:35]} 15. Rc1 {[%emt 0:02:55]} e4 {[%emt 0:02:55]} 16. Bb5 {[%emt 0:01:39]} Bd7 {[%emt 0:01:31]} 17. Bxd7 {[%emt 0:01:11]} Qxd7 {[%emt 0:00:08]} 18. Bc5 {[%emt 0:03:33]} Bf4 {[%emt 0:08:47]} 19. Rc4 {[%emt 0:02:58]} b5 {[%emt 0:02:34]} 20. Rc2 Rad8 {[%emt 0:02:28]} 21. Qg4 {[%emt 0:14:20]} Qxg4 {[%emt 0:02:23]} 22. hxg4 {[%emt 0:00:50]} Rxd5 {[%emt 0:04:01]} 23. Bxa7 {[%emt 0:01:21]} f6 {[%emt 0:00:50]} 24. g3 {[%emt 0:01:15]} e3 {[%emt 0:04:01]} 25. Re1 {[%emt 0:13:55]} exf2+ {[%emt 0:00:11]} 26. Bxf2 {[%emt 0:00:16]} Rxe1+ {[%emt 0:00:26]} 27. Bxe1 {[%emt 0:00:25]} Be5 {[%emt 0:01:02]} 28. Kg2 {[%emt 0:01:10]} Kf7 {[%emt 0:02:37]} 29. Bf2 {[%emt 0:05:32]} Kg6 {[%emt 0:01:29]} 30. b3 {[%emt 0:01:29]} Kg5 {[%emt 0:01:56]} 31. Kh3 {[%emt 0:00:15]} f5 {[%emt 0:05:16]} 32. gxf5 {[%emt 0:02:16]} Kxf5 {[%emt 0:00:04]} 33. a4 {[%emt 0:01:23]} bxa4 {[%emt 0:01:52]} 34. bxa4 {[%emt 0:00:09]} Ke4 {[%emt 0:00:45]} 35. Kg2 {[%emt 0:00:57]} Kd3 {[%emt 0:03:40]} 36. Rc5 {[%emt 0:03:14]} Rxc5 {[%emt 0:02:06]} 37. Bxc5 {[%emt 0:00:20]} Bc7 {[%emt 0:01:02]} 38. Bb4 {[%emt 0:00:33]} Kc4 {[%emt 0:03:16]} 1/2-1/2

[Event "Guimaraes Open 2019"]
[Site "Guimaraes"]
[Date "2019.09.01"]
[Round "7.28"]
[White "Duller Llopis, Jouke"]
[Black "Fidalgo, Daniel Neves"]
[Result "0-1"]
[ECO "A48"]
[WhiteElo "1781"]
[BlackElo "2089"]
[Annotator "NA"]
[PlyCount "120"]
[EventDate "2019.08.28"]
[EventType "swiss"]
[EventCountry "POR"]
[SourceTitle "playchess.com"]
[Source "ChessBase"]
[SourceQuality "1"]
[TimeControl "5400+30"]

1. Nf3 {[%emt 0:00:00]} Nf6 {[%emt 0:00:00]} 2. d4 {[%emt 0:00:16]} g6 3. c3 d5 {[%emt 0:00:55]} 4. Bf4 {[%emt 0:02:19]} Bg7 {[%emt 0:00:17]} 5. e3 {[%emt 0:00:19]} O-O {[%emt 0:00:12]} 6. Be2 {[%emt 0:07:15]} c5 {[%emt 0:05:19]} 7. b4 {[%emt 0:01:11]} b6 {[%emt 0:03:03]} 8. O-O {[%emt 0:01:00]} Bf5 {[%emt 0:04:03]} 9. Nbd2 {[%emt 0:03:37]} Nh5 {[%emt 0:06:01]} 10. Be5 {[%emt 0:13:53]} Nd7 {[%emt 0:04:01]} 11. Bxg7 {[%emt 0:03:14]} Nxg7 {[%emt 0:00:14]} 12. bxc5 {[%emt 0:01:22]} bxc5 {[%emt 0:00:14]} 13. c4 {[%emt 0:00:44]} cxd4 {[%emt 0:03:42]} 14. Nxd4 {[%emt 0:07:48]} Ne5 {[%emt 0:00:43]} 15. cxd5 {[%emt 0:01:10]} g5 {[%emt 0:10:41]} 16. N2f3 {[%emt 0:25:09]} Nxf3+ {[%emt 0:07:29]} 17. Bxf3 {[%emt 0:00:05]} Bd7 {[%emt 0:00:18]} 18. Nc6 {[%emt 0:06:53]} Bxc6 {[%emt 0:02:54]} 19. dxc6 {[%emt 0:00:05]} Qc7 {[%emt 0:02:58]} 20. Rb1 {[%emt 0:05:54]} Rad8 {[%emt 0:01:13]} 21. Qa4 {[%emt 0:03:52]} Ne6 {[%emt 0:02:25]} 22. Rb7 {[%emt 0:01:36]} Qd6 {[%emt 0:00:17]} 23. Qa5 {[%emt 0:09:37]} g4 {[%emt 0:01:05]} 24. Bxg4 {[%emt 0:00:58]} Qxc6 {[%emt 0:00:16]} 25. Rxe7 {[%emt 0:01:21]} Rd5 {[%emt 0:02:24]} 26. Bf3 {[%emt 0:01:07]} Rxa5 {[%emt 0:00:12]} 27. Bxc6 {[%emt 0:00:07]} Nd8 {[%emt 0:01:02]} 28. Be4 {[%emt 0:01:05]} Rxa2 {[%emt 0:00:14]} 29. Bd5 {[%emt 0:00:32]} Ra5 {[%emt 0:00:40]} 30. e4 {[%emt 0:00:39]} Kg7 {[%emt 0:01:47]} 31. Rc7 {[%emt 0:01:21]} Kf6 {[%emt 0:00:13]} 32. g3 {[%emt 0:00:44]} Ne6 {[%emt 0:00:09]} 33. Bxe6 {[%emt 0:00:27]} Kxe6 {[%emt 0:01:03]} 34. f4 {[%emt 0:00:01]} Rd8 35. Rfc1 Rd6 {[%emt 0:01:54]} 36. e5 {[%emt 0:01:39]} Rd7 {[%emt 0:02:14]} 37. R1c6+ {[%emt 0:00:29]} Ke7 {[%emt 0:00:08]} 38. Kf2 {[%emt 0:00:16]} Ra2+ {[%emt 0:00:54]} 39. Ke3 {[%emt 0:00:16]} a5 {[%emt 0:00:27]} 40. Rxd7+ {[%emt 0:00:34]} Kxd7 {[%emt 0:00:02]} 41. Rd6+ {[%emt 0:00:32]} Ke7 {[%emt 0:00:08]} 42. h4 {[%emt 0:00:16]} Ra3+ {[%emt 0:00:10]} 43. Kf2 {[%emt 0:01:03]} a4 {[%emt 0:00:07]} 44. Rd2 {[%emt 0:00:38]} h5 {[%emt 0:00:10]} 45. f5 {[%emt 0:00:30]} Rb3 {[%emt 0:00:42]} 46. Ra2 {[%emt 0:00:34]} a3 {[%emt 0:00:04]} 47. Ke1 {[%emt 0:00:26]} Rxg3 {[%emt 0:00:21]} 48. Kd1 {[%emt 0:00:12]} Kd7 {[%emt 0:00:40]} 49. Kc1 {[%emt 0:00:38]} Rf3 {[%emt 0:02:22]} 50. Rd2+ {[%emt 0:00:41]} Ke7 {[%emt 0:00:08]} 51. Kb1 {[%emt 0:00:32]} Rxf5 {[%emt 0:00:23]} 52. Rd3 Rxe5 {[%emt 0:00:16]} 53. Rxa3 {[%emt 0:00:27]} Re4 {[%emt 0:00:10]} 54. Ra7+ {[%emt 0:00:25]} Kf6 {[%emt 0:00:19]} 55. Kc2 {[%emt 0:00:33]} Rxh4 {[%emt 0:00:06]} 56. Kd3 {[%emt 0:00:05]} Rg4 {[%emt 0:00:34]} 57. Ke3 {[%emt 0:00:23]} Kg6 {[%emt 0:01:12]} 58. Kf3 {[%emt 0:01:29]} Rb4 {[%emt 0:00:09]} 59. Ra6+ {[%emt 0:00:24]} Kg5 {[%emt 0:00:14]} 60. Ra5+ {[%emt 0:00:34]} f5 {[%emt 0:00:55]} 0-1

[Event "Guimaraes Open 2019"]
[Site "Guimaraes"]
[Date "2019.09.01"]
[Round "7.29"]
[White "Soares, Luis Francisco Almei"]
[Black "Diaz Gomez, Mateo"]
[Result "1-0"]
[ECO "A83"]
[WhiteElo "2033"]
[BlackElo "1851"]
[Annotator "NA"]
[PlyCount "67"]
[EventDate "2019.08.28"]
[EventType "swiss"]
[EventCountry "POR"]
[SourceTitle "playchess.com"]
[Source "ChessBase"]
[SourceQuality "1"]
[TimeControl "5400+30"]

1. d4 {[%emt 0:00:00]} f5 {[%emt 0:00:00]} 2. e4 {[%emt 0:00:00]} fxe4 {[%emt 0:00:00]} 3. Nc3 {[%emt 0:00:00]} Nf6 {[%emt 0:00:00]} 4. Bg5 {[%emt 0:00:00]} Nc6 {[%emt 0:00:00]} 5. d5 {[%emt 0:01:09]} Ne5 {[%emt 0:00:00]} 6. Qd4 {[%emt 0:00:34]} d6 {[%emt 0:00:32]} 7. Nxe4 {[%emt 0:00:41]} c6 {[%emt 0:01:25]} 8. Nc3 {[%emt 0:12:59]} Qb6 {[%emt 0:11:46]} 9. Qxb6 {[%emt 0:02:25]} axb6 {[%emt 0:00:02]} 10. dxc6 {[%emt 0:01:50]} bxc6 {[%emt 0:00:21]} 11. f4 {[%emt 0:00:40]} Nf7 {[%emt 0:07:36]} 12. Bh4 {[%emt 0:00:47]} Bf5 {[%emt 0:04:04]} 13. O-O-O {[%emt 0:03:54]} Ne4 {[%emt 0:03:46]} 14. Nge2 {[%emt 0:05:04]} Nxc3 {[%emt 0:03:26]} 15. Nxc3 {[%emt 0:00:06]} e5 {[%emt 0:01:36]} 16. fxe5 {[%emt 0:00:18]} Nxe5 {[%emt 0:00:12]} 17. h3 {[%emt 0:01:57]} Be7 {[%emt 0:04:20]} 18. Bxe7 {[%emt 0:01:31]} Kxe7 {[%emt 0:00:02]} 19. g4 {[%emt 0:00:19]} Be6 {[%emt 0:03:41]} 20. a3 {[%emt 0:02:37]} Rhf8 {[%emt 0:00:43]} 21. Be2 {[%emt 0:02:15]} Rf2 {[%emt 0:01:42]} 22. Rxd6 {[%emt 0:07:56]} Bd5 {[%emt 0:06:37]} 23. Rxd5 {[%emt 0:07:49]} cxd5 {[%emt 0:03:03]} 24. Nxd5+ {[%emt 0:00:34]} Kf8 {[%emt 0:01:54]} 25. Rf1 {[%emt 0:12:47]} Rxf1+ {[%emt 0:00:54]} 26. Bxf1 {[%emt 0:00:06]} Nf3 {[%emt 0:01:03]} 27. Bg2 {[%emt 0:02:11]} Nh4 {[%emt 0:01:17]} 28. Be4 {[%emt 0:00:38]} Re8 {[%emt 0:00:38]} 29. Nc3 {[%emt 0:03:08]} Re5 {[%emt 0:00:45]} 30. Kd2 {[%emt 0:00:21]} h5 {[%emt 0:00:08]} 31. Ke3 {[%emt 0:00:49]} hxg4 {[%emt 0:00:54]} 32. hxg4 {[%emt 0:00:33]} g5 {[%emt 0:00:59]} 33. a4 {[%emt 0:00:58]} Rc5 {[%emt 0:00:50]} 34. Kd4 {[%emt 0:00:35]} 1-0

[Event "Guimaraes Open 2019"]
[Site "Guimaraes"]
[Date "2019.09.01"]
[Round "7.30"]
[White "Andrade, Ricardo Sarmento"]
[Black "Sanleon Pravisano, Nieves"]
[Result "0-1"]
[ECO "D00"]
[WhiteElo "1756"]
[BlackElo "1995"]
[Annotator "NA"]
[PlyCount "62"]
[EventDate "2019.08.28"]
[EventType "swiss"]
[EventCountry "POR"]
[SourceTitle "playchess.com"]
[Source "ChessBase"]
[SourceQuality "1"]
[TimeControl "5400+30"]

1. d4 {[%emt 0:02:34]} d5 {[%emt 0:00:00]} 2. Bf4 {[%emt 0:00:06]} Nf6 {[%emt 0:00:00]} 3. e3 {[%emt 0:00:03]} e6 {[%emt 0:00:00]} 4. Nd2 {[%emt 0:00:13]} c5 {[%emt 0:00:00]} 5. c3 {[%emt 0:00:03]} Nc6 {[%emt 0:00:08]} 6. Bd3 {[%emt 0:00:05]} Bd6 {[%emt 0:00:07]} 7. Bg3 {[%emt 0:00:50]} O-O {[%emt 0:00:16]} 8. Ngf3 {[%emt 0:00:04]} b6 {[%emt 0:00:25]} 9. Qe2 {[%emt 0:00:45]} Bb7 {[%emt 0:09:30]} 10. Rd1 {[%emt 0:03:48]} Ne7 {[%emt 0:02:04]} 11. dxc5 {[%emt 0:02:17]} bxc5 {[%emt 0:03:02]} 12. e4 {[%emt 0:00:26]} Bxg3 {[%emt 0:19:42]} 13. hxg3 {[%emt 0:00:19]} Ng6 {[%emt 0:02:01]} 14. Ng5 {[%emt 0:11:09]} h6 {[%emt 0:14:02]} 15. e5 {[%emt 0:00:44]} Nd7 {[%emt 0:00:42]} 16. Bxg6 {[%emt 0:02:23]} Qxg5 {[%emt 0:02:52]} 17. Bd3 {[%emt 0:04:38]} Qxe5 {[%emt 0:01:22]} 18. Bb5 {[%emt 0:00:28]} Qxe2+ {[%emt 0:00:24]} 19. Kxe2 {[%emt 0:00:04]} Nf6 {[%emt 0:00:50]} 20. f3 {[%emt 0:00:14]} a5 {[%emt 0:04:34]} 21. Nb3 {[%emt 0:02:53]} Rfc8 {[%emt 0:00:08]} 22. Kd2 {[%emt 0:07:30]} a4 {[%emt 0:04:33]} 23. Nc1 {[%emt 0:00:04]} c4 {[%emt 0:02:24]} 24. b3 {[%emt 0:01:47]} axb3 {[%emt 0:00:25]} 25. axb3 {[%emt 0:00:08]} cxb3 {[%emt 0:00:23]} 26. Nxb3 {[%emt 0:02:23]} Ra2+ {[%emt 0:00:32]} 27. Kd3 {[%emt 0:00:09]} Rxg2 {[%emt 0:01:28]} 28. Rhg1 {[%emt 0:00:25]} Rxg1 {[%emt 0:01:52]} 29. Rxg1 {[%emt 0:00:02]} Bc6 {[%emt 0:00:38]} 30. Ba6 {[%emt 0:00:36]} Ra8 {[%emt 0:00:17]} 31. Ra1 {[%emt 0:01:15]} Rxa6 {[%emt 0:00:39]} 0-1

[Event "Guimaraes Open 2019"]
[Site "Guimaraes"]
[Date "2019.09.01"]
[Round "7.31"]
[White "Tevar Becerra, Alvaro"]
[Black "Santos, Jose Miguel Sereno"]
[Result "0-1"]
[ECO "B13"]
[WhiteElo "1990"]
[BlackElo "1749"]
[Annotator "NA"]
[PlyCount "122"]
[EventDate "2019.08.28"]
[EventType "swiss"]
[EventCountry "POR"]
[SourceTitle "playchess.com"]
[Source "ChessBase"]
[SourceQuality "1"]
[TimeControl "5400+30"]

1. e4 {[%emt 0:00:00]} c6 {[%emt 0:02:20]} 2. d4 {[%emt 0:00:00]} d5 {[%emt 0:00:16]} 3. exd5 {[%emt 0:00:00]} cxd5 {[%emt 0:00:06]} 4. Bb5+ {[%emt 0:00:02]} Nc6 {[%emt 0:01:12]} 5. Nc3 {[%emt 0:01:28]} Nf6 {[%emt 0:00:35]} 6. Nf3 {[%emt 0:00:06]} a6 {[%emt 0:02:23]} 7. Bxc6+ {[%emt 0:00:19]} bxc6 {[%emt 0:00:07]} 8. Ne5 {[%emt 0:00:07]} Bd7 {[%emt 0:00:39]} 9. O-O {[%emt 0:00:19]} e6 {[%emt 0:00:07]} 10. Bg5 {[%emt 0:00:35]} Be7 {[%emt 0:00:13]} 11. a4 {[%emt 0:01:35]} a5 {[%emt 0:00:23]} 12. Qd3 {[%emt 0:03:52]} O-O {[%emt 0:01:20]} 13. Rab1 {[%emt 0:03:58]} Ne8 14. Bxe7 {[%emt 0:00:35]} Qxe7 {[%emt 0:15:46]} 15. Nxd7 {[%emt 0:00:34]} Qxd7 {[%emt 0:01:37]} 16. b4 {[%emt 0:00:10]} axb4 {[%emt 0:00:12]} 17. Rxb4 {[%emt 0:00:01]} Nd6 {[%emt 0:00:12]} 18. Rfb1 {[%emt 0:00:32]} Rfc8 {[%emt 0:01:43]} 19. h3 {[%emt 0:04:22]} f6 {[%emt 0:19:46]} 20. Qg3 {[%emt 0:03:07]} c5 {[%emt 0:05:46]} 21. dxc5 {[%emt 0:02:52]} Rxc5 {[%emt 0:00:41]} 22. Rb8+ {[%emt 0:09:34]} Rc8 23. Rxa8 {[%emt 0:01:48]} Rxa8 {[%emt 0:00:37]} 24. Rb6 {[%emt 0:01:06]} Nf5 {[%emt 0:00:17]} 25. Rb8+ {[%emt 0:02:05]} Kf7 {[%emt 0:00:13]} 26. Qf4 {[%emt 0:00:34]} Ra7 {[%emt 0:04:32]} 27. Qb4 {[%emt 0:00:29]} Qe7 {[%emt 0:02:15]} 28. Qb6 {[%emt 0:02:48]} Nd6 {[%emt 0:01:01]} 29. Nb5 {[%emt 0:00:58]} Nxb5 {[%emt 0:00:13]} 30. Qxb5 {[%emt 0:02:30]} Qd7 {[%emt 0:01:10]} 31. Ra8 {[%emt 0:13:19]} Rb7 {[%emt 0:00:50]} 32. Qc5 {[%emt 0:01:58]} Qe7 {[%emt 0:06:25]} 33. Qc8 {[%emt 0:04:55]} Rc7 {[%emt 0:01:50]} 34. Qb8 {[%emt 0:00:45]} Rb7 {[%emt 0:00:59]} 35. Qg8+ {[%emt 0:00:18]} Kg6 {[%emt 0:00:07]} 36. g3 {[%emt 0:01:47]} d4 {[%emt 0:06:09]} 37. Rb8 {[%emt 0:04:32]} Ra7 {[%emt 0:00:37]} 38. Re8 {[%emt 0:03:35]} Qf7 {[%emt 0:00:16]} 39. Qh8 {[%emt 0:02:21]} Rxa4 {[%emt 0:00:13]} 40. Rb8 {[%emt 0:01:24]} Qd7 {[%emt 0:01:37]} 41. g4 {[%emt 0:01:10]} Ra1+ {[%emt 0:00:12]} 42. Kh2 {[%emt 0:00:24]} Qd6+ {[%emt 0:00:09]} 43. Kg2 {[%emt 0:00:12]} Qc6+ {[%emt 0:00:10]} 44. Kg3 {[%emt 0:00:22]} Kh6 {[%emt 0:09:14]} 45. Qf8 {[%emt 0:01:47]} Qxc2 {[%emt 0:02:11]} 46. g5+ {[%emt 0:07:03]} fxg5 {[%emt 0:00:32]} 47. Re8 {[%emt 0:01:17]} Qd3+ {[%emt 0:01:46]} 48. Kh2 {[%emt 0:02:24]} Qe4 {[%emt 0:00:18]} 49. Rxe6+ {[%emt 0:04:15]} Qxe6 {[%emt 0:00:30]} 50. Qf3 {[%emt 0:00:33]} Qd6+ {[%emt 0:00:20]} 51. Kg2 {[%emt 0:00:01]} Ra3 {[%emt 0:00:23]} 52. Qe4 {[%emt 0:00:12]} Ra6 {[%emt 0:00:32]} 53. Qd3 {[%emt 0:00:33]} Qd5+ {[%emt 0:00:21]} 54. Kh2 {[%emt 0:00:01]} Rf6 {[%emt 0:00:20]} 55. Kg3 {[%emt 0:00:31]} Qe5+ {[%emt 0:00:18]} 56. Kg2 {[%emt 0:00:14]} Qf4 {[%emt 0:00:06]} 57. f3 {[%emt 0:00:07]} Qe3 {[%emt 0:00:06]} 58. Qf1 d3 {[%emt 0:00:11]} 59. h4 {[%emt 0:00:21]} gxh4 {[%emt 0:00:21]} 60. Qh1 {[%emt 0:00:15]} Qxf3+ {[%emt 0:00:07]} 61. Kh2 {[%emt 0:00:20]} Qg3# {[%emt 0:01:00]} 0-1

[Event "Guimaraes Open 2019"]
[Site "Guimaraes"]
[Date "2019.09.01"]
[Round "7.32"]
[White "Pipiras, Filipa Fortuna"]
[Black "Guimaraes, Henrique Oliveira"]
[Result "0-1"]
[ECO "D34"]
[WhiteElo "1959"]
[BlackElo "1412"]
[Annotator "NA"]
[PlyCount "52"]
[EventDate "2019.08.28"]
[EventType "swiss"]
[EventCountry "POR"]
[SourceTitle "playchess.com"]
[Source "ChessBase"]
[SourceQuality "1"]
[TimeControl "5400+30"]

1. d4 {[%emt 0:04:37]} d5 {[%emt 0:00:00]} 2. c4 {[%emt 0:00:17]} e6 {[%emt 0:00:04]} 3. Nc3 {[%emt 0:00:23]} c5 {[%emt 0:00:38]} 4. cxd5 {[%emt 0:02:00]} exd5 {[%emt 0:01:16]} 5. Nf3 {[%emt 0:00:38]} Nc6 {[%emt 0:00:37]} 6. g3 {[%emt 0:01:10]} Nf6 {[%emt 0:01:13]} 7. Bg2 {[%emt 0:00:47]} Be7 {[%emt 0:00:32]} 8. O-O {[%emt 0:02:00]} O-O {[%emt 0:00:59]} 9. dxc5 {[%emt 0:10:10]} d4 10. Na4 {[%emt 0:05:02]} b5 {[%emt 0:25:30]} 11. cxb6 {[%emt 0:00:41]} axb6 {[%emt 0:02:03]} 12. b3 {[%emt 0:07:58]} Ra7 {[%emt 0:07:37]} 13. Re1 {[%emt 0:17:56]} Bf5 {[%emt 0:09:53]} 14. Nh4 {[%emt 0:04:07]} Be4 {[%emt 0:02:31]} 15. f3 {[%emt 0:01:59]} Bd5 {[%emt 0:01:28]} 16. e4 {[%emt 0:08:16]} Be6 {[%emt 0:02:49]} 17. Bf1 {[%emt 0:02:28]} Ra5 {[%emt 0:10:10]} 18. Bd2 {[%emt 0:05:41]} Bb4 {[%emt 0:08:17]} 19. Nb2 {[%emt 0:03:08]} Qd7 {[%emt 0:05:06]} 20. Nd3 {[%emt 0:05:37]} Bc3 {[%emt 0:04:44]} 21. Rc1 {[%emt 0:06:09]} Rxa2 {[%emt 0:01:43]} 22. Bxc3 {[%emt 0:01:09]} dxc3 {[%emt 0:00:38]} 23. Re2 {[%emt 0:02:06]} Rxe2 {[%emt 0:05:03]} 24. Bxe2 {[%emt 0:00:28]} Nd4 {[%emt 0:00:28]} 25. Rxc3 {[%emt 0:01:21]} Nxe2+ {[%emt 0:00:38]} 26. Qxe2 {[%emt 0:00:19]} Qd4+ {[%emt 0:00:10]} 0-1